[Event "Satranc Arena IM Series-1 2024"]
[Site "Izmir"]
[Date "2024.03.20"]
[Round "5.4"]
[White "Gur, Ali"]
[Black "Yermolinsky, Alex"]
[Result "0-1"]
[ECO "B23"]
[WhiteElo "1848"]
[BlackElo "2421"]
[Annotator "TA"]
[PlyCount "128"]
[EventDate "2024.03.18"]
[EventCountry "TUR"]
[SourceTitle "playchess.com"]
[Source "ChessBase"]
[SourceQuality "1"]
[TimeControl "5400+30"]

{[%evp 11,128,-11,-7,-14,0,-5,0,-12,-10,-13,2,-19,-20,-23,-22,-39,0,0,-4,-45,-52,-38,-47,-61,-60,-57,-62,-66,-58,-168,-116,-117,0,-157,-157,-160,-167,-177,-173,-289,-343,-344,-341,-409,-399,-470,-129,-163,-127,-298,-286,-267,-77,-74,-83,-83,-81,-77,-86,-145,-132,-121,-124,-316,-302,-715,-712,-689,-570,-664,-580,-744,-731,-943,-858,-1176,-1224,-1376,-1291,-1429,-1201,-3346,-1914,-1900,-1746,-3012,-1660,-1674,-1674,-6432,-6912,-6211,-1880,-5427,-2217,-29969,-29971,-29968,-29972,-29970,-29972,-29970,-29972,-29976,-29977,-29977,-29978,-29978,-29979,-29980,-29981,-29982,-29981,-29984,-29982,-29982,-29982,-29982,-29983]} 1. e4 {[%emt 0:00:04]} c5 {[%emt 0:00:10]} 2. Nc3 {[%emt 0:00:08]} e6 {[%emt 0:00:05]} 3. g3 {[%emt 0:00:07]} d5 {[%emt 0:00:05]} 4. exd5 {[%emt 0:00:09]} exd5 {[%emt 0:00:03]} 5. Bg2 {[%emt 0:00:10]} Nf6 {[%emt 0:00:09]} 6. d3 {[%emt 0:01:19]} d4 {[%emt 0:00:06]} 7. Nce2 {[%emt 0:01:33]} h6 {[%emt 0:05:36]} 8. Nf3 {[%emt 0:01:55]} Nc6 {[%emt 0:00:07]} 9. O-O {[%emt 0:00:33] Die Stellung ist ausgeglichen.} Be7 {[%emt 0:04:34]} 10. Re1 {[%emt 0:01:09]} O-O {[%emt 0:00:49]} 11. Nf4 {[%emt 0:02:25]} Bd6 {[%emt 0:03:54]} 12. c3 {[%emt 0:04:38]} dxc3 {[%emt 0:04:11]} 13. bxc3 {[%emt 0:00:03]} Bf5 {[%emt 0:03:54]} 14. d4 {[%emt 0:02:29]} Re8 {[%emt 0:10:28]} 15. Rxe8+ {[%emt 0:07:25]} Qxe8 {[%emt 0:02:56]} 16. Be3 {[%emt 0:02:39]} Rd8 {[%emt 0:08:16]} 17. Qc1 {[%emt 0:07:47]} cxd4 {[%emt 0:10:11]} 18. Nxd4 {[%emt 0:01:09]} Be4 {[%emt 0:00:09]} 19. Bxe4 {[%emt 0:04:00]} Nxe4 {[%emt 0:04:00]} 20. Nh5 {[%emt 0:05:02]} (20. Nd3 $15) 20... Qe5 {[%emt 0:08:56]} ({Günstiger ist} 20... Be5 $19 {[%cal Oe4c3] Droht stark ...Nxc3!} 21. Kg2 Qd7) 21. Nf4 {[%emt 0:03:07]} Qe8 {[%emt 0:08:58]} 22. Nh5 {[%emt 0:04:57] [#]} Be5 $1 $36 {[%emt 0:00:43][%cal Oe4c3][%mdl 2048] Droht ...Nxc3! und aus. Läuft bei Schwarz.} 23. Ne2 {[%emt 0:05:59]} Qe6 {[%emt 0:05:07] Schwarz hat aktiveres Spiel.} 24. Nhf4 {[%emt 0:12:52]} Qc4 {[%emt 0:00:17][%cal Og7g5] Zielt auf ...g5! ab.} 25. Qc2 {[%emt 0:02:56]} (25. Qf1 $142) 25... g5 $19 {[%emt 0:03:36]} (25... Bxc3 26. Rc1 $17) (25... Nxc3 26. Nxc3 Qxc3 27. Qxc3 Bxc3 28. Rb1 $17) 26. Ng2 {[%emt 0:07:00]} Nb4 {[%emt 0:01:48]} (26... Nxc3 27. Nxc3 Rd3 (27... Bxc3 28. Rc1 $15) (27... Qxc3 28. Qxc3 Bxc3 29. Rb1 $19) 28. Rd1 Rxc3 (28... Qxc3 $2 29. Qxd3 Qa5 30. h4 $18) 29. Qd2 $17) 27. Qa4 {[%emt 0:03:41] Weiss ist schwach auf den weissen Feldern} b5 {[%emt 0:08:54]} (27... Nxc3 28. Nxc3 Bxc3 29. Rb1 $17) (27... Qxe2 28. Re1 Nxc3 (28... Qxa2 $2 29. Qxb4 Bxc3 30. Qxe4 $19) 29. Qxb4 $19) 28. Qb3 {[%emt 0:01:46]} Nxc3 $2 {[%emt 0:01:16]} (28... Qxe2 $19 {bietet bessere Gewinnchancen.} 29. Qxb4 Bxc3 (29... Nxc3 $2 30. Qb3 $19) (29... Rd1+ $2 30. Rxd1 Qxd1+ 31. Ne1 $19)) 29. Nxc3 {[%emt 0:00:57]} Bxc3 {[%emt 0:00:58]} 30. Rd1 {[%emt 0:01:26]} (30. Qxc4 $17 bxc4 31. Rb1) 30... Rxd1+ {[%emt 0:02:15]} (30... Nxa2 $2 31. Rxd8+ Kh7 32. Qxc4 bxc4 33. Rc8 $18 (33. Bxa7 Bf6 $18)) 31. Qxd1 {[%emt 0:00:01]} Qd3 $2 {[%emt 0:00:55]} ({Auf keinen Fall} 31... Nxa2 32. Bxa7 Bf6 33. Ne3 $17) (31... Qxa2 $19 {und Schwarz behält klar die Oberhand. Weiss muss nun ...a5 beachten.} 32. h4 Qa1 (32... Qd5 $2 33. Qg4 $19) 33. Qxa1 Bxa1 34. Bxa7 Nc6) 32. Qxd3 $17 {[%emt 0:02:28]} Nxd3 {[%emt 0:00:01]} 33. Bxa7 {[%emt 0:00:08][%mdl 4096] Endspiel. KBN-KBN} Nb4 {[%emt 0:00:06]} 34. a3 {[%emt 0:00:30]} Nc2 {[%emt 0:00:02]} 35. Bc5 {[%emt 0:00:16]} (35. Kf1 $142) 35... Bb2 {[%emt 0:00:04]} 36. Ne3 {[%emt 0:00:50]} Bxa3 {[%emt 0:00:16]} 37. Nxc2 $2 {[%emt 0:00:05]} (37. Bxa3 $17 {einziger Zug.} Nxa3 38. Kf1) 37... Bxc5 {[%emt 0:00:05] KB-KN} 38. g4 $2 {[%emt 0:01:03]} (38. Kf1) 38... Kg7 $19 {[%emt 0:00:20]} 39. Kf1 {[%emt 0:01:37]} Kf6 {[%emt 0:00:01]} 40. Ke2 {[%emt 0:01:53]} Ke5 {[%emt 0:00:01]} 41. f3 {[%emt 0:00:26]} b4 {[%emt 0:00:59] ...b3 ist eine echte Drohung.} 42. Na1 {[%emt 0:00:46]} Kd4 {[%emt 0:00:07]} 43. Nb3+ {[%emt 0:00:04]} Kc4 {[%emt 0:00:06]} 44. Nd2+ {[%emt 0:00:38]} Kc3 {[%emt 0:00:31]} 45. Ne4+ {[%emt 0:00:29]} Kd4 {[%emt 0:00:03] Und ...Bf8 würde nun gewinnen.} 46. Kd2 {[%emt 0:02:33]} b3 {[%emt 0:03:22]} 47. Ng3 {[%emt 0:01:29]} Bb4+ {[%emt 0:01:49]} 48. Kc1 {[%emt 0:00:09]} Ke3 {[%emt 0:01:10]} 49. Nf5+ {[%emt 0:00:51]} Kxf3 {[%emt 0:00:02] ...Ba3+ wäre nun fies.} 50. Nxh6 {[%emt 0:02:36]} f6 {[%emt 0:00:01]} 51. Kb2 {[%emt 0:02:07]} Bf8 {[%emt 0:00:04]} 52. Ng8 {[%emt 0:02:00]} Bg7 {[%emt 0:00:04]} ({Weniger gut wäre} 52... Kxg4 53. Nxf6+ Kf3 (53... Kf5 54. Nd7 $11) 54. Kxb3 $11) 53. Kxb3 {[%emt 0:00:39]} Kxg4 {[%emt 0:00:07] Schwarz setzt Matt.} 54. Kc4 {[%emt 0:01:00]} Kh3 {[%emt 0:00:11]} 55. Ne7 {[%emt 0:00:18]} Kxh2 {[%emt 0:02:42]} 56. Nf5 {[%emt 0:00:08] [#]} Bh8 $1 {[%emt 0:00:20]} (56... Bf8 $2 57. Kd5 $19) 57. Kd3 {[%emt 0:01:55]} g4 {[%emt 0:00:11]} 58. Nd4 {[%emt 0:01:32]} g3 {[%emt 0:01:14]} 59. Nf3+ {[%emt 0:00:42]} Kh1 {[%emt 0:00:16]} 60. Ke2 {[%emt 0:01:00]} g2 {[%emt 0:00:07]} 61. Kf2 {[%emt 0:00:21]} Bg7 {[%emt 0:00:09]} 62. Ng1 {[%emt 0:00:27]} Bf8 {[%emt 0:00:13]} 63. Ne2 {[%emt 0:00:42]} g1=Q+ {[%emt 0:00:47]} 64. Nxg1 {[%emt 0:00:07]} Bc5+ {[%emt 0:00:07] Gewichteter Fehlerwert: Weiß=0.71/Schwarz=0.18 (sehr präzise) .  Verlustzug:     	Weiß=2     	---        Gewinn verpasst:   	---       	Schwarz=2     Fehler:       	Weiß=4     	Schwarz=1     Ungenau:       	Weiß=1     	Schwarz=1     OK:         	Weiß=8     	Schwarz=16    Bester:       	Weiß=2     	Schwarz=4} 0-1

[Event "Satranc Arena IM Series-1 2024"]
[Site "Izmir"]
[Date "2024.03.20"]
[Round "5.5"]
[White "Baltag, Iulian"]
[Black "Ozsakallioglu, Okan"]
[Result "1/2-1/2"]
[ECO "B40"]
[WhiteElo "2412"]
[BlackElo "2365"]
[Annotator "TA"]
[PlyCount "60"]
[EventDate "2024.03.18"]
[EventCountry "TUR"]
[SourceTitle "playchess.com"]
[Source "ChessBase"]
[SourceQuality "1"]
[TimeControl "5400+30"]

{[%evp 12,60,23,15,23,26,18,0,19,0,22,0,0,0,116,104,105,118,97,0,11,0,5,10,5,2,11,0,0,0,0,0,0,0,0,0,0,0,0,0,-1,-4,0,0,0,0,0,0,0,0,0]} 1. e4 {[%emt 0:00:04]} c5 {[%emt 0:00:04]} 2. Nf3 {[%emt 0:00:23]} e6 {[%emt 0:00:07]} 3. b3 {[%emt 0:00:22]} b6 {[%emt 0:03:03]} 4. Bb2 {[%emt 0:00:11]} Bb7 {[%emt 0:00:05]} 5. Nc3 {[%emt 0:00:11]} Nc6 {[%emt 0:04:01]} 6. d4 {[%emt 0:00:46]} cxd4 {[%emt 0:00:13]} 7. Nxd4 {[%emt 0:00:05]} a6 {[%emt 0:02:28] Prevents Ndb5.} 8. Nxc6 {[%emt 0:00:51]} Bxc6 {[%emt 0:00:12]} 9. Qd3 {[%emt 0:00:16]} b5 {[%emt 0:00:56]} 10. O-O-O {[%emt 0:02:50][%cal Oc3d5]} Rc8 {[%emt 0:06:26]} 11. Kb1 {[%emt 0:00:35]} Nf6 {[%emt 0:04:20] White must now prevent ...b4.} 12. f3 {[%emt 0:00:20]} d5 {[%emt 0:04:05]} (12... Be7 $11 {remains equal.}) 13. exd5 $16 {[%emt 0:00:34]} Nxd5 {[%emt 0:00:05]} 14. Nxd5 {[%emt 0:00:53]} Qxd5 {[%emt 0:00:33] [#]} 15. Qxd5 {[%emt 0:02:07]} (15. Qe2 $1 $16 Qc5 16. Qe1) 15... Bxd5 $11 {[%emt 0:01:12] The position is equal.} 16. a4 {[%emt 0:00:58]} Bc6 {[%emt 0:04:55]} 17. axb5 {[%emt 0:00:25]} axb5 {[%emt 0:00:04]} 18. Bd3 {[%emt 0:00:04]} f6 {[%emt 0:06:08]} 19. Rhe1 {[%emt 0:00:16]} Kf7 {[%emt 0:00:10]} 20. Be4 {[%emt 0:01:49]} Be7 {[%emt 0:00:40]} 21. Bxc6 {[%emt 0:00:32]} Rxc6 {[%emt 0:00:04]} 22. Rd7 {[%emt 0:00:37]} Rd8 {[%emt 0:01:03]} 23. Rxd8 {[%emt 0:01:06]} Bxd8 {[%emt 0:00:05][%mdl 4096] Endgame. KRB-KRB} 24. Rd1 {[%emt 0:00:06]} Ke8 {[%emt 0:00:15]} 25. c4 {[%emt 0:08:17]} bxc4 {[%emt 0:00:31]} 26. Rc1 {[%emt 0:00:08]} Bc7 {[%emt 0:00:45]} 27. h3 {[%emt 0:00:45]} Kd7 {[%emt 0:00:31]} 28. Rxc4 {[%emt 0:00:11]} Rxc4 {[%emt 0:00:05]} 29. bxc4 {[%emt 0:00:04]} Bd6 {[%emt 0:00:26]} 30. Kc2 {[%emt 0:00:07]} Kc6 {[%emt 0:00:05] Weighted Error Value: White=0.11 (very precise) /Black=0.17 (very precise) .  Mistake:       	White=1     	Black=1      OK:         	White=10    	Black=5      Best:        	White=2     	---} 1/2-1/2

[Event "Satranc Arena IM Series-1 2024"]
[Site "Izmir"]
[Date "2024.03.20"]
[Round "6.1"]
[White "Aydin, Gulenay"]
[Black "Ozsakallioglu, Okan"]
[Result "0-1"]
[ECO "B22"]
[WhiteElo "2152"]
[BlackElo "2365"]
[Annotator "TA"]
[PlyCount "76"]
[EventDate "2024.03.18"]
[EventCountry "TUR"]
[SourceTitle "playchess.com"]
[Source "ChessBase"]
[SourceQuality "1"]
[TimeControl "5400+30"]

{[%evp 16,76,31,9,41,24,11,6,39,0,85,56,63,-105,-53,-53,-55,-44,-62,-139,-147,-140,-136,-159,-136,-143,3,-9,0,0,0,0,0,-64,-37,-102,-100,-622,-589,-618,-629,-622,-579,-846,-1047,-973,-1060,-1063,-1030,-1052,-1074,-1046,-1035,-29980,-29981,-29980,-29981,-29989,-29990,-29990,-29991,-29991,-29992]} 1. e4 {[%emt 0:00:01]} c5 {[%emt 0:02:42]} 2. c3 {[%emt 0:00:06]} Nf6 {[%emt 0:00:16]} 3. e5 {[%emt 0:00:05]} Nd5 {[%emt 0:00:04]} 4. Nf3 {[%emt 0:00:06]} Nc6 {[%emt 0:00:08]} 5. Bc4 {[%emt 0:00:05]} Nb6 {[%emt 0:00:18]} 6. Bb3 {[%emt 0:00:07]} c4 {[%emt 0:00:04]} 7. Bc2 {[%emt 0:00:03]} d5 {[%emt 0:00:06]} 8. exd6 {[%emt 0:00:06]} Qxd6 {[%emt 0:00:03]} 9. O-O {[%emt 0:00:09]} Bg4 {[%emt 0:00:12]} 10. h3 {[%emt 0:00:18]} Bh5 {[%emt 0:00:28]} 11. Re1 {[%emt 0:00:27] Against Ne5} O-O-O {[%emt 0:04:25] The position is equal.} 12. b3 {[%emt 0:01:22]} e5 {[%emt 0:01:12]} (12... Qf6 $1 $11 {keeps the balance.}) 13. Qe2 {[%emt 0:49:07]} Nd5 {[%emt 0:07:00]} 14. Bd1 $2 {[%emt 0:00:10]} ({Reject} 14. bxc4 $6 Nf4 15. Qe3 Bg6 $15) (14. Na3 $14 {keeps the upper hand.}) 14... f5 {[%emt 0:17:31]} (14... Nf4 $17 15. Qxc4 Qg6) 15. Qxc4 $15 {[%emt 0:06:04]} Bxf3 {[%emt 0:00:13]} 16. Bxf3 {[%emt 0:01:01]} e4 {[%emt 0:00:04]} 17. Be2 {[%emt 0:05:23] [#] White is weak on the dark squares} (17. Bd1 $1 $15) 17... Qg6 $1 $17 {[%emt 0:01:32][%mdl 1024] Black has strong compensation.} 18. Bf1 {[%emt 0:02:02]} Nb6 {[%emt 0:00:14]} ({Much less strong is} 18... Nf4 19. Re3 $15) 19. Qb5 {[%emt 0:07:13]} Rd5 {[%emt 0:00:29]} 20. Qe2 {[%emt 0:00:02]} Ne5 {[%emt 0:00:11] Black has more active pieces. The white rooks are passive.} ({Better is} 20... Rd3 $17 {[%cal Ob6d5] aiming for ...Nd5!} 21. Kh1 Nd5) 21. d4 $1 $132 {[%emt 0:00:16][%mdl 2048] White puts up resistance} Nf3+ {[%emt 0:01:28]} ({Of course not} 21... exd3 $6 22. Qd1 Qf6 23. a4 $16) 22. Kh1 {[%emt 0:00:05]} Nxe1 {[%emt 0:00:24]} 23. Qxe1 {[%emt 0:00:03]} Rd8 {[%emt 0:01:39]} 24. c4 {[%emt 0:04:21]} ({Only move:} 24. a4 $1 $11) 24... Rxd4 {[%emt 0:06:19]} 25. Be3 {[%emt 0:00:16]} ({White should play} 25. Bb2 $1 $15 Rd7 26. Qa5) 25... Rd7 $17 {[%emt 0:02:25][%cal Of5f4]} 26. Qa5 $2 {[%emt 0:06:30][%mdl 8192] Loses the game.} (26. Qc1 $17) 26... Rd1 $19 {[%emt 0:01:12]} 27. Kg1 {[%emt 0:00:11] [#]} f4 $1 {[%emt 0:07:58]} 28. Bxf4 {[%emt 0:01:50]} Bd6 {[%emt 0:00:26]} 29. c5 {[%emt 0:07:18]} Bxf4 {[%emt 0:00:38]} 30. cxb6 {[%emt 0:00:09]} axb6 {[%emt 0:00:28]} 31. Qc3+ {[%emt 0:00:06]} Kb8 {[%emt 0:01:05]} 32. Na3 {[%emt 0:00:40]} Rxa1 {[%emt 0:00:33]} 33. Qxa1 {[%emt 0:00:04]} e3 {[%emt 0:00:40] ( -> ...exf2+)} 34. fxe3 {[%emt 0:01:40]} Bxe3+ {[%emt 0:00:04] Black mates.} 35. Kh1 {[%emt 0:00:06]} Qg3 {[%emt 0:00:07]} 36. Nc4 {[%emt 0:00:23]} Bf4 {[%emt 0:00:24][%csl Gf4][%cal Rg3h2]} 37. Kg1 {[%emt 0:00:03]} Rf8 {[%emt 0:00:20]} 38. Qd1 {[%emt 0:01:07]} Bc7 {[%emt 0:00:08] Weighted Error Value: White=0.76/Black=0.16 (very precise) .  Loses game:     	White=1     	---        Mistake:       	White=4     	Black=3      Inaccurate:     	White=2     	Black=1      OK:         	White=7     	Black=9      Best:        	White=2     	Black=1      Strong:       	White=1     	Black=1} 0-1

[Event "Satranc Arena IM Series-1 2024"]
[Site "Izmir"]
[Date "2024.03.20"]
[Round "6.2"]
[White "Yermolinsky, Alex"]
[Black "Baltag, Iulian"]
[Result "1-0"]
[ECO "D37"]
[WhiteElo "2421"]
[BlackElo "2412"]
[Annotator "TA"]
[PlyCount "117"]
[EventDate "2024.03.18"]
[EventCountry "TUR"]
[SourceTitle "playchess.com"]
[Source "ChessBase"]
[SourceQuality "1"]
[TimeControl "5400+30"]

{[%evp 9,117,16,31,27,39,39,35,12,20,20,33,14,26,20,45,50,43,44,50,37,43,11,36,31,80,82,134,157,219,227,208,154,143,148,173,179,164,113,197,197,236,252,223,211,257,246,223,210,265,249,248,240,228,175,165,165,165,167,162,158,269,263,261,255,312,312,314,322,372,372,381,375,400,393,385,389,385,387,378,351,462,443,445,408,407,418,524,518,542,522,815,738,772,643,835,817,970,902,858,910,1339,1312,5583,5957,29958,4659,29974,29974,29974,29976]} 1. d4 {[%emt 0:00:04]} d5 {[%emt 0:00:08]} 2. c4 {[%emt 0:00:05]} e6 {[%emt 0:00:06]} 3. Nc3 {[%emt 0:00:20]} h6 {[%emt 0:00:53]} 4. Nf3 {[%emt 0:06:47][%cal Bg1f3,Bf3d2,Bd2c4,Bc4d6][%mdl 32]} Nf6 {[%emt 0:02:18]} 5. Bf4 {[%emt 0:00:14]} Bd6 {[%emt 0:00:06]} 6. Bxd6 {[%emt 0:00:07]} Qxd6 {[%emt 0:00:05]} 7. e3 {[%emt 0:00:13]} O-O {[%emt 0:00:07]} 8. Be2 {[%emt 0:00:21] White is slightly better.} dxc4 {[%emt 0:01:43]} 9. Nd2 {[%emt 0:03:13]} Qe7 {[%emt 0:02:39]} 10. Nxc4 {[%emt 0:00:15]} c5 {[%emt 0:00:31]} 11. dxc5 {[%emt 0:02:16]} Qxc5 {[%emt 0:00:11]} 12. Qd6 {[%emt 0:02:30]} Qxd6 {[%emt 0:00:23]} 13. Nxd6 {[%emt 0:00:05]} Nc6 {[%emt 0:00:30]} 14. O-O-O {[%emt 0:01:59]} Rb8 {[%emt 0:00:14][%cal Ba8b8,Bb8b7,Bb7c7,Bc7c8][%mdl 32]} 15. f4 {[%emt 0:05:57]} e5 {[%emt 0:01:15]} 16. f5 {[%emt 0:02:12]} b6 {[%emt 0:12:26] Black is weak on the light squares} (16... Ne7 $14 {might be stronger.}) 17. g4 $16 {[%emt 0:04:38] White is much more active. The black rooks are passive.} Bb7 {[%emt 0:01:09]} (17... Rd8 $142) 18. h4 {[%emt 0:03:39]} Ne8 {[%emt 0:13:58]} (18... Na5 $16 {keeps fighting.}) 19. Nxb7 $18 {[%emt 0:10:14]} Rxb7 {[%emt 0:00:06]} 20. Bf3 {[%emt 0:03:00]} Rc7 {[%emt 0:00:05]} 21. Nd5 {[%emt 0:00:20]} Rc8 {[%emt 0:00:40]} 22. Kb1 {[%emt 0:00:06]} Kh8 {[%emt 0:01:49]} 23. Rc1 {[%emt 0:03:27]} ({White should try} 23. g5 $18) 23... e4 {[%emt 0:00:53]} 24. Bxe4 {[%emt 0:00:09]} Nd6 {[%emt 0:00:04] [#]} 25. Nxb6 $1 {[%emt 0:02:46][%mdl 512]} axb6 {[%emt 0:02:19]} 26. Bxc6 {[%emt 0:00:09]} h5 {[%emt 0:00:10]} 27. Rhd1 {[%emt 0:10:09]} Rfd8 {[%emt 0:00:30]} 28. Bf3 {[%emt 0:03:49][%cal Bc6f3,Bf3g4,Bg4e2,Be2d3][%mdl 32]} hxg4 {[%emt 0:01:13]} 29. Rxc8 {[%emt 0:05:34]} Rxc8 {[%emt 0:00:16]} 30. Bxg4 {[%emt 0:00:03][%mdl 4096] Endgame. KRB-KRN} Nc4 {[%emt 0:00:48] [#]} 31. f6 $1 {[%emt 0:03:47]} Re8 {[%emt 0:01:43]} 32. Be2 {[%emt 0:06:21]} Nxe3 {[%emt 0:00:25]} 33. Rd7 {[%emt 0:02:21] aiming for Re7.} gxf6 {[%emt 0:05:10]} 34. Rxf7 {[%emt 0:00:08]} Re4 {[%emt 0:00:44]} (34... Re6 $16 {was necessary.} 35. h5 Kg8) 35. Rxf6 {[%emt 0:04:31]} Rxh4 {[%emt 0:00:15]} 36. Kc1 {[%emt 0:00:10]} (36. Rxb6 $2 {is a self mate.} Rh1+) 36... Rh2 {[%emt 0:03:29]} 37. Bd3 {[%emt 0:00:37]} Nd5 {[%emt 0:01:23]} 38. Rd6 {[%emt 0:02:08]} Rh5 {[%emt 0:04:37]} 39. Be4 {[%emt 0:00:43]} Ne3 {[%emt 0:01:33]} 40. Rxb6 {[%emt 0:01:04]} Rc5+ {[%emt 0:00:54]} 41. Kb1 {[%emt 0:00:02]} Nc4 {[%emt 0:00:21] ( -> ...Nd2+)} 42. Rb8+ {[%emt 0:03:39]} Kg7 {[%emt 0:00:06]} 43. Rd8 {[%emt 0:00:07] Inhibits Nd2+.} Kf6 {[%emt 0:01:00]} 44. b3 {[%emt 0:00:46]} Ne3 {[%emt 0:00:43]} 45. Kb2 {[%emt 0:01:53]} Ke5 {[%emt 0:00:12]} 46. Bb1 {[%emt 0:02:27]} Nd5 {[%emt 0:02:03]} 47. a4 {[%emt 0:00:36]} Rc7 {[%emt 0:00:42]} 48. Bd3 {[%emt 0:01:21]} Rg7 {[%emt 0:05:01]} 49. Ka3 {[%emt 0:00:24] Against Nb4} Rg1 {[%emt 0:00:31]} 50. Bc4 {[%emt 0:00:20]} Ne7 {[%emt 0:00:11]} 51. Rd2 {[%emt 0:00:42]} Nc6 {[%emt 0:00:36]} 52. Rd5+ {[%emt 0:01:19]} Ke4 {[%emt 0:00:18]} 53. Rd6 {[%emt 0:00:10]} Nd4 {[%emt 0:00:50]} 54. Kb4 {[%emt 0:00:11]} Rg5 {[%emt 0:01:03]} 55. a5 {[%emt 0:00:23][%cal Ba4a5,Ba5a6,Ba6a7][%mdl 32] Hoping for a6.} Rg1 {[%emt 0:01:43]} 56. a6 {[%emt 0:00:15] White threatens a7 and mate.} Ra1 {[%emt 0:00:18]} 57. Kc5 {[%emt 0:00:50]} Ra5+ {[%emt 0:00:56]} 58. Kb6 {[%emt 0:00:28]} Ra3 {[%emt 0:00:17]} 59. a7 {[%emt 0:07:36] Weighted Error Value: White=0.11 (very precise) /Black=0.26 (precise) .  Mistake:       	White=1     	Black=5      Inaccurate:     	White=1     	Black=2      OK:         	White=24    	Black=15     Best:        	White=5     	Black=1      Brilliant:      	White=1     	---} 1-0

[Event "Satranc Arena IM Series-1 2024"]
[Site "Izmir"]
[Date "2024.03.20"]
[Round "6.3"]
[White "David, Alexandru-Vasile"]
[Black "Gur, Ali"]
[Result "1-0"]
[ECO "E29"]
[WhiteElo "2360"]
[BlackElo "1848"]
[Annotator "TA"]
[PlyCount "59"]
[EventDate "2024.03.18"]
[EventCountry "TUR"]
[SourceTitle "playchess.com"]
[Source "ChessBase"]
[SourceQuality "1"]
[TimeControl "5400+30"]

{[%evp 22,59,43,31,41,35,42,42,68,49,76,54,52,50,96,53,52,48,442,403,379,404,491,464,754,485,1180,1109,1816,1808,1733,1629,29983,29984,29984,29985,29989,29990,29991,29991]} 1. d4 {[%emt 0:00:04]} Nf6 {[%emt 0:00:14]} 2. c4 {[%emt 0:00:08]} e6 {[%emt 0:00:22]} 3. Nc3 {[%emt 0:00:11]} Bb4 {[%emt 0:00:07]} 4. e3 {[%emt 0:00:21]} O-O {[%emt 0:00:08]} 5. a3 {[%emt 0:00:11]} Bxc3+ {[%emt 0:00:02]} 6. bxc3 {[%emt 0:00:06]} c5 {[%emt 0:00:32]} 7. Bd3 {[%emt 0:00:43]} d6 {[%emt 0:01:16]} 8. e4 {[%emt 0:01:03]} Nc6 {[%emt 0:01:35]} 9. Ne2 {[%emt 0:00:09]} e5 {[%emt 0:02:05]} 10. d5 {[%emt 0:01:26]} Na5 {[%emt 0:01:27]} 11. Ng3 {[%emt 0:01:05]} b6 {[%emt 0:01:50]} 12. O-O {[%emt 0:01:00]} Re8 {[%emt 0:01:40]} 13. Rb1 {[%emt 0:02:17]} Bg4 {[%emt 0:01:48]} 14. f3 {[%emt 0:01:22]} Bd7 {[%emt 0:00:18] Weiß steht etwas besser.} 15. f4 {[%emt 0:00:41]} exf4 {[%emt 0:08:30]} 16. Bxf4 {[%emt 0:00:13][%cal Of4g5]} (16. Rxf4 $5 h6 17. Rb2 $16) 16... Ng4 $1 {[%emt 0:04:05]} 17. Bxd6 {[%emt 0:01:07] Zielt auf Qf3 ab.} Qh4 {[%emt 0:02:03]} (17... Nb7 $14 18. Bf4 Ne5) 18. h3 {[%emt 0:09:11][%cal Bh2h3,Bh3g4][%mdl 32]} Nb7 {[%emt 0:05:45]} 19. Bf4 $36 {[%emt 0:02:20][%mdl 2048] Schwarz steht unter Druck. Das Läuferpaar ist gut.} g5 $2 {[%emt 0:02:05][%mdl 8192] [#] Danach kann Schwarz die Partie nicht mehr halten.} (19... Ne5 $1 $14) 20. Qf3 {[%emt 0:03:29]} gxf4 {[%emt 0:00:44]} 21. Qxf4 {[%emt 0:01:20]} Re7 {[%emt 0:08:17]} 22. hxg4 {[%emt 0:03:58]} f5 {[%emt 0:08:26]} (22... Qxg4 $142 23. Qf6 Qxg3 24. Qxe7 Qe3+ 25. Rf2 (25. Kh2 Rf8 $18) 25... Bg4 26. Qxf7+ (26. Qxb7 Rf8 $18) 26... Kh8 27. Qf6+ (27. Qxb7 Rg8 $18) 27... Kg8) 23. e5 {[%emt 0:03:46]} Rg7 {[%emt 0:06:11]} (23... Qxg4 $142 24. Qxg4+ (24. Nxf5 Bxf5 25. Qxf5 Qxf5 $18) (24. Bxf5 Qxf4 25. Rxf4 Bxf5 $18) 24... fxg4) 24. Bxf5 $18 {[%emt 0:00:37]} Qe7 {[%emt 0:05:12]} 25. Bxd7 {[%emt 0:01:50] [#] Nf5 wäre nun fies.} Qxd7 {[%emt 0:02:14]} 26. Nh5 {[%emt 0:00:09] jetzt Nf6+ und aus.} Rg6 {[%emt 0:00:00]} 27. Nf6+ {[%emt 0:00:08] Weiß setzt Matt.} Rxf6 {[%emt 0:00:00]} 28. Qxf6 {[%emt 0:01:13]} Qxg4 {[%emt 0:00:55]} 29. Rf5 {[%emt 0:00:06]} h6 {[%emt 0:00:19]} 30. Rbf1 {[%emt 0:00:06] Gewichteter Fehlerwert: Weiß=0.34/Schwarz=0.89.  Verlustzug:     	---       	Schwarz=1     Fehler:       	---       	Schwarz=3     Ungenau:       	Weiß=2     	Schwarz=3     OK:         	Weiß=3     	Schwarz=2     Bester:       	Weiß=1     	---        Stark:        	---       	Schwarz=1} 1-0